[Event "Late-Titled-Tuesday-Blitz-June-25-2024"]
[Site "Chess.com"]
[Date "2024.06.25"]
[Round "10"]
[White "howitzer14"]
[Black "OppieZippy"]
[Result "1-0"]
[WhiteElo "3027"]
[BlackElo "2374"]
[TimeControl "180+1"]
[EndTime "15:54:48 PDT"]
[Termination "howitzer14 won by resignation"]

1. b3 {[%clk 0:02:58.3]} 1... Nc6 {[%clk 0:02:55.8]} 2. Bb2 {[%clk 0:02:59.2]}
2... e5 {[%clk 0:02:55.9]} 3. e3 {[%clk 0:02:58.3]} 3... d6 {[%clk 0:02:55.9]}
4. Ne2 {[%clk 0:02:54.1]} 4... Bd7 {[%clk 0:02:55.5]} 5. a3 {[%clk 0:02:53.1]}
5... g6 {[%clk 0:02:54.7]} 6. g3 {[%clk 0:02:48.9]} 6... Bg7 {[%clk 0:02:54.2]}
7. Bg2 {[%clk 0:02:49.8]} 7... Nge7 {[%clk 0:02:54.9]} 8. c3 {[%clk 0:02:46.8]}
8... O-O {[%clk 0:02:55.4]} 9. c4 {[%clk 0:02:46.3]} 9... a5 {[%clk 0:02:54.1]}
10. Nbc3 {[%clk 0:02:45.7]} 10... h5 {[%clk 0:02:54.1]} 11. h3 {[%clk
0:02:45.7]} 11... Kh7 {[%clk 0:02:48.9]} 12. O-O {[%clk 0:02:41.8]} 12... h4
{[%clk 0:02:46.7]} 13. f4 {[%clk 0:02:08.9]} 13... hxg3 {[%clk 0:02:41]} 14.
Nxg3 {[%clk 0:02:09.8]} 14... exf4 {[%clk 0:02:35.6]} 15. Rxf4 {[%clk
0:02:08.1]} 15... Nf5 {[%clk 0:02:31.3]} 16. Nxf5 {[%clk 0:01:48.5]} 16... Bxf5
{[%clk 0:02:31.2]} 17. Rxf5 {[%clk 0:01:48.8]} 17... gxf5 {[%clk 0:02:27.1]} 18.
Qh5+ {[%clk 0:01:48.7]} 18... Kg8 {[%clk 0:02:27.6]} 19. Kh1 {[%clk 0:01:29.8]}
19... Qf6 {[%clk 0:02:20]} 20. Rg1 {[%clk 0:01:29.4]} 20... Qg6 {[%clk
0:02:20.5]} 21. Qh4 {[%clk 0:01:05.6]} 21... Bf6 {[%clk 0:02:10]} 22. Qf2 {[%clk
0:00:58.3]} 22... Kh7 {[%clk 0:02:08.1]} 23. Bxc6 {[%clk 0:00:53.9]} 23... Qh5
{[%clk 0:02:06]} 24. Qf3 {[%clk 0:00:43.8]} 24... Qh6 {[%clk 0:01:58.7]} 25.
Qxf5+ {[%clk 0:00:41.5]} 25... Kh8 {[%clk 0:01:59.4]} 26. Be4 {[%clk 0:00:25.8]}
26... Rg8 {[%clk 0:01:58.4]} 27. d4 {[%clk 0:00:13.8]} 27... Rxg1+ {[%clk
0:01:57.6]} 28. Kxg1 {[%clk 0:00:14.7]} 28... Rg8+ {[%clk 0:01:57.8]} 29. Kh2
{[%clk 0:00:14.4]} 29... Qh4 {[%clk 0:01:52.7]} 30. Ne2 {[%clk 0:00:12.7]} 30...
Rg6 {[%clk 0:01:34.6]} 31. Bc3 {[%clk 0:00:10.8]} 31... Kg7 {[%clk 0:01:32.7]}
32. Qf4 {[%clk 0:00:09.1]} 32... Qh5 {[%clk 0:01:28.3]} 33. Bf3 {[%clk
0:00:09.6]} 33... Qh8 {[%clk 0:01:23.5]} 34. Ng3 {[%clk 0:00:10.1]} 34... Bg5
{[%clk 0:01:20.2]} 35. d5+ {[%clk 0:00:09.9]} 35... f6 {[%clk 0:01:19.6]} 36.
Qe4 {[%clk 0:00:09]} 36... Kh6 {[%clk 0:01:14.7]} 37. Nf5+ {[%clk 0:00:08.4]}
37... Kh7 {[%clk 0:01:14.1]} 38. Qe7+ {[%clk 0:00:09.3]} 38... Kg8 {[%clk
0:01:07.4]} 39. Qe8+ {[%clk 0:00:09.2]} 39... Kh7 {[%clk 0:01:07.9]} 40. Qf7+
{[%clk 0:00:10.1]} 40... Rg7 {[%clk 0:01:07.7]} 41. Qxg7+ {[%clk 0:00:10.2]}
41... Qxg7 {[%clk 0:01:08.6]} 42. Nxg7 {[%clk 0:00:11]} 42... Kxg7 {[%clk
0:01:09.5]} 43. Bxa5 {[%clk 0:00:10.7]} 43... b6 {[%clk 0:01:07.8]} 44. Bd2
{[%clk 0:00:11.3]} 1-0

[Event "Late-Titled-Tuesday-Blitz-June-25-2024"]
[Site "Chess.com"]
[Date "2024.06.25"]
[Round "10"]
[White "zverr1"]
[Black "Veleamater"]
[Result "1-0"]
[WhiteElo "2556"]
[BlackElo "2403"]
[TimeControl "180+1"]
[EndTime "15:54:48 PDT"]
[Termination "zverr1 won by checkmate"]

1. e4 {[%clk 0:03:00.9]} 1... d6 {[%clk 0:03:00.9]} 2. d4 {[%clk 0:03:00.4]}
2... g6 {[%clk 0:03:01.3]} 3. Nc3 {[%clk 0:03:00.9]} 3... Bg7 {[%clk 0:03:01.2]}
4. Be3 {[%clk 0:03:01.4]} 4... Nf6 {[%clk 0:03:01.1]} 5. h3 {[%clk 0:03:00.8]}
5... O-O {[%clk 0:03:01.3]} 6. g4 {[%clk 0:02:59.3]} 6... Nc6 {[%clk 0:03:01.2]}
7. Bg2 {[%clk 0:02:59]} 7... e5 {[%clk 0:02:59.7]} 8. Nge2 {[%clk 0:02:59.6]}
8... Nd7 {[%clk 0:02:57.4]} 9. O-O {[%clk 0:02:58.3]} 9... f5 {[%clk 0:02:50]}
10. exf5 {[%clk 0:02:52.8]} 10... gxf5 {[%clk 0:02:48.9]} 11. gxf5 {[%clk
0:02:52.7]} 11... Nb6 {[%clk 0:02:41]} 12. a4 {[%clk 0:02:37.4]} 12... Bxf5
{[%clk 0:02:33.8]} 13. a5 {[%clk 0:02:36.5]} 13... exd4 {[%clk 0:02:17.5]} 14.
Nxd4 {[%clk 0:02:28.1]} 14... Nxd4 {[%clk 0:02:12]} 15. Bxd4 {[%clk 0:02:24.6]}
15... Qg5 {[%clk 0:02:01.9]} 16. Be3 {[%clk 0:02:10.3]} 16... Qg6 {[%clk
0:01:58]} 17. axb6 {[%clk 0:02:06.7]} 17... Bxh3 {[%clk 0:01:55.8]} 18. Qd5+
{[%clk 0:02:06.4]} 18... Kh8 {[%clk 0:01:54]} 19. Qg5 {[%clk 0:02:00.5]} 19...
Qe6 {[%clk 0:01:42]} 20. Bxh3 {[%clk 0:00:46.5]} 20... Qxh3 {[%clk 0:01:39.2]}
21. Qg2 {[%clk 0:00:41.8]} 21... Qd7 {[%clk 0:01:34.2]} 22. Rxa7 {[%clk
0:00:31.2]} 22... c6 {[%clk 0:01:31.2]} 23. Rxa8 {[%clk 0:00:27]} 23... Rxa8
{[%clk 0:01:29.7]} 24. Re1 {[%clk 0:00:22]} 24... Rg8 {[%clk 0:01:28.6]} 25. Bg5
{[%clk 0:00:14.4]} 25... Qf5 {[%clk 0:01:16.5]} 26. f4 {[%clk 0:00:13.6]} 26...
h6 {[%clk 0:01:14.1]} 27. Qh2 {[%clk 0:00:12.6]} 27... Bf8 {[%clk 0:01:03.5]}
28. Kh1 {[%clk 0:00:09.1]} 28... Kh7 {[%clk 0:00:57.1]} 29. Re2 {[%clk
0:00:06.6]} 29... Bg7 {[%clk 0:00:51.9]} 30. Qh4 {[%clk 0:00:05.6]} 30... d5
{[%clk 0:00:49.8]} 31. Re7 {[%clk 0:00:04.4]} 31... Qxc2 {[%clk 0:00:41.5]} 32.
Qxh6# {[%clk 0:00:04.3]} 1-0

[Event "Late-Titled-Tuesday-Blitz-June-25-2024"]
[Site "Chess.com"]
[Date "2024.06.25"]
[Round "10"]
[White "SaraBlackPanther"]
[Black "GM_dmitrij"]
[Result "1/2-1/2"]
[WhiteElo "2757"]
[BlackElo "2975"]
[TimeControl "180+1"]
[EndTime "15:54:54 PDT"]
[Termination "Game drawn by repetition"]

1. c4 {[%clk 0:03:00.9]} 1... e5 {[%clk 0:02:59.1]} 2. Nc3 {[%clk 0:02:59.5]}
2... Bb4 {[%clk 0:02:59.1]} 3. Nd5 {[%clk 0:02:58.9]} 3... Be7 {[%clk
0:02:59.2]} 4. d4 {[%clk 0:02:52.7]} 4... exd4 {[%clk 0:02:59.2]} 5. Qxd4 {[%clk
0:02:50.8]} 5... Nf6 {[%clk 0:02:59.4]} 6. Nxe7 {[%clk 0:02:50.3]} 6... Qxe7
{[%clk 0:02:59.2]} 7. Bg5 {[%clk 0:02:50.6]} 7... Nc6 {[%clk 0:02:59.8]} 8. Qc3
{[%clk 0:02:49]} 8... d6 {[%clk 0:02:56]} 9. Nf3 {[%clk 0:02:42.9]} 9... Ne5
{[%clk 0:02:55.8]} 10. Nxe5 {[%clk 0:02:30.8]} 10... dxe5 {[%clk 0:02:56.7]} 11.
g3 {[%clk 0:02:30]} 11... h6 {[%clk 0:02:55.8]} 12. Bxf6 {[%clk 0:02:29.8]}
12... Qxf6 {[%clk 0:02:55.9]} 13. Bg2 {[%clk 0:02:30.6]} 13... O-O {[%clk
0:02:55.9]} 14. O-O {[%clk 0:02:30.3]} 14... c6 {[%clk 0:02:56.3]} 15. b4 {[%clk
0:02:27.1]} 15... Bg4 {[%clk 0:02:50.4]} 16. h3 {[%clk 0:02:22.4]} 16... Bh5
{[%clk 0:02:41.3]} 17. g4 {[%clk 0:02:11.4]} 17... Bg6 {[%clk 0:02:41]} 18. f4
{[%clk 0:02:12]} 18... exf4 {[%clk 0:02:19.2]} 19. Qxf6 {[%clk 0:02:09.8]} 19...
gxf6 {[%clk 0:02:20.1]} 20. Rxf4 {[%clk 0:02:10.5]} 20... Rfe8 {[%clk
0:02:18.8]} 21. Kf2 {[%clk 0:02:06.8]} 21... Rad8 {[%clk 0:02:10.7]} 22. Bf3
{[%clk 0:01:46.2]} 22... Kg7 {[%clk 0:02:02.3]} 23. b5 {[%clk 0:01:43.4]} 23...
Rd2 {[%clk 0:01:48]} 24. a4 {[%clk 0:01:40.2]} 24... Re7 {[%clk 0:01:30.3]} 25.
a5 {[%clk 0:01:35.9]} 25... cxb5 {[%clk 0:01:27.5]} 26. cxb5 {[%clk 0:01:36.8]}
26... Rb2 {[%clk 0:01:25.9]} 27. b6 {[%clk 0:01:09.8]} 27... axb6 {[%clk
0:01:26.1]} 28. axb6 {[%clk 0:01:10.1]} 28... Rxb6 {[%clk 0:01:27]} 29. Raa4
{[%clk 0:01:08.7]} 29... Rd6 {[%clk 0:00:51.9]} 30. Rab4 {[%clk 0:01:07.4]}
30... b6 {[%clk 0:00:49.9]} 31. Rb2 {[%clk 0:01:01]} 31... Re8 {[%clk 0:00:43]}
32. Rfb4 {[%clk 0:00:59.9]} 32... Rb8 {[%clk 0:00:43.6]} 33. Rb5 {[%clk
0:00:58]} 33... Kf8 {[%clk 0:00:36.1]} 34. h4 {[%clk 0:00:56.8]} 34... Ke7
{[%clk 0:00:34.3]} 35. Ra2 {[%clk 0:00:54.3]} 35... Kf8 {[%clk 0:00:32.9]} 36.
Rab2 {[%clk 0:00:54.4]} 36... Kg7 {[%clk 0:00:32.4]} 37. Kg3 {[%clk 0:00:52.8]}
37... Re6 {[%clk 0:00:32.6]} 38. Kf2 {[%clk 0:00:52.3]} 38... Be4 {[%clk
0:00:29.5]} 39. Kg3 {[%clk 0:00:44.6]} 39... Bh7 {[%clk 0:00:26]} 40. Kf2 {[%clk
0:00:44.3]} 40... Rd6 {[%clk 0:00:23.2]} 41. Kg3 {[%clk 0:00:44.2]} 41... Kg8
{[%clk 0:00:23.8]} 42. Kf2 {[%clk 0:00:44.3]} 42... Bg6 {[%clk 0:00:24.4]} 43.
Kg3 {[%clk 0:00:44.6]} 43... Kf8 {[%clk 0:00:24.9]} 44. Kf2 {[%clk 0:00:44.6]}
1/2-1/2

[Event "Late-Titled-Tuesday-Blitz-June-25-2024"]
[Site "Chess.com"]
[Date "2024.06.25"]
[Round "10"]
[White "Mackster23"]
[Black "Flaccidmoves"]
[Result "1-0"]
[WhiteElo "2665"]
[BlackElo "2525"]
[TimeControl "180+1"]
[EndTime "15:54:59 PDT"]
[Termination "Mackster23 won by resignation"]

1. e4 {[%clk 0:03:00.9]} 1... e6 {[%clk 0:02:58.7]} 2. d4 {[%clk 0:03:00.9]}
2... d5 {[%clk 0:02:59.6]} 3. Nc3 {[%clk 0:03:01]} 3... Bb4 {[%clk 0:02:59.1]}
4. e5 {[%clk 0:03:01]} 4... c5 {[%clk 0:02:58.9]} 5. a3 {[%clk 0:03:01.4]} 5...
Bxc3+ {[%clk 0:02:58.7]} 6. bxc3 {[%clk 0:03:02.3]} 6... Ne7 {[%clk 0:02:58.5]}
7. Qg4 {[%clk 0:03:01.8]} 7... g6 {[%clk 0:02:56.9]} 8. h4 {[%clk 0:02:54.6]}
8... h5 {[%clk 0:02:56.1]} 9. Qd1 {[%clk 0:02:53.4]} 9... b6 {[%clk 0:02:53]}
10. a4 {[%clk 0:02:49.9]} 10... Ba6 {[%clk 0:02:51]} 11. Bxa6 {[%clk 0:02:48.3]}
11... Nxa6 {[%clk 0:02:50.6]} 12. a5 {[%clk 0:02:49.2]} 12... bxa5 {[%clk
0:02:25.6]} 13. Ba3 {[%clk 0:02:37.5]} 13... c4 {[%clk 0:02:21.7]} 14. Nf3
{[%clk 0:02:35.7]} 14... O-O {[%clk 0:02:09.2]} 15. Ng5 {[%clk 0:02:34.1]} 15...
Nf5 {[%clk 0:01:55.5]} 16. Bxf8 {[%clk 0:02:30.4]} 16... Kxf8 {[%clk 0:01:55.6]}
17. Qc1 {[%clk 0:02:20.1]} 17... Rb8 {[%clk 0:01:46.8]} 18. g3 {[%clk
0:02:01.5]} 18... Kg7 {[%clk 0:01:36.3]} 19. Qa3 {[%clk 0:01:57.5]} 19... Rb5
{[%clk 0:01:34.8]} 20. Kd2 {[%clk 0:01:56.6]} 20... Nb8 {[%clk 0:01:17.5]} 21.
Rhb1 {[%clk 0:01:54.1]} 21... Rxb1 {[%clk 0:01:13.9]} 22. Rxb1 {[%clk 0:01:55]}
22... Qc7 {[%clk 0:00:56.8]} 23. Rb5 {[%clk 0:01:31.5]} 23... Nc6 {[%clk
0:00:53.6]} 24. Qc5 {[%clk 0:01:22.8]} 24... Qd7 {[%clk 0:00:43.6]} 25. Rb1
{[%clk 0:01:17]} 25... Nh6 {[%clk 0:00:30.6]} 26. Qb5 {[%clk 0:00:52.3]} 26...
Ng4 {[%clk 0:00:27.6]} 27. Ke2 {[%clk 0:00:37.9]} 27... Nh6 {[%clk 0:00:17.9]}
28. Qb7 {[%clk 0:00:37.3]} 28... Qe8 {[%clk 0:00:17.8]} 29. Qc7 {[%clk
0:00:33.7]} 29... Nf5 {[%clk 0:00:16.4]} 30. Rb7 {[%clk 0:00:32.2]} 30... Nfe7
{[%clk 0:00:16.3]} 31. Qd6 {[%clk 0:00:27.6]} 31... a4 {[%clk 0:00:14.7]} 32.
Qa3 {[%clk 0:00:25.8]} 32... Na5 {[%clk 0:00:13.5]} 33. Rxe7 {[%clk 0:00:23.7]}
33... Qb5 {[%clk 0:00:11.8]} 34. Rxf7+ {[%clk 0:00:22.4]} 1-0

[Event "Late-Titled-Tuesday-Blitz-June-25-2024"]
[Site "Chess.com"]
[Date "2024.06.25"]
[Round "10"]
[White "chesspilot01"]
[Black "Chaubunagungamaug1"]
[Result "0-1"]
[WhiteElo "2358"]
[BlackElo "2587"]
[TimeControl "180+1"]
[EndTime "15:55:01 PDT"]
[Termination "Chaubunagungamaug1 won on time"]

1. e4 {[%clk 0:03:00.9]} 1... c5 {[%clk 0:02:59.6]} 2. Nf3 {[%clk 0:02:59.3]}
2... e6 {[%clk 0:02:59.3]} 3. Qe2 {[%clk 0:02:58.4]} 3... Nc6 {[%clk 0:02:58.7]}
4. g3 {[%clk 0:02:58.3]} 4... Be7 {[%clk 0:02:57.1]} 5. Bg2 {[%clk 0:02:57.9]}
5... d5 {[%clk 0:02:57.3]} 6. d3 {[%clk 0:02:57.9]} 6... Nf6 {[%clk 0:02:57.5]}
7. O-O {[%clk 0:02:57.7]} 7... O-O {[%clk 0:02:58]} 8. e5 {[%clk 0:02:58.1]}
8... Nd7 {[%clk 0:02:58.2]} 9. c4 {[%clk 0:02:58.7]} 9... f6 {[%clk 0:02:17]}
10. exf6 {[%clk 0:02:19.9]} 10... Nxf6 {[%clk 0:02:16.1]} 11. Nc3 {[%clk
0:02:19.1]} 11... Nd4 {[%clk 0:01:33.9]} 12. Nxd4 {[%clk 0:01:24.7]} 12... cxd4
{[%clk 0:01:34.8]} 13. Nb5 {[%clk 0:01:25.2]} 13... dxc4 {[%clk 0:01:32.9]} 14.
Bf4 {[%clk 0:01:16.3]} 14... a6 {[%clk 0:01:02.8]} 15. Nc7 {[%clk 0:01:14.8]}
15... cxd3 {[%clk 0:01:02.5]} 16. Qxd3 {[%clk 0:01:12.5]} 16... Ra7 {[%clk
0:01:01.1]} 17. Bh3 {[%clk 0:00:56.6]} 17... e5 {[%clk 0:00:47.5]} 18. Be6+
{[%clk 0:00:18.7]} 18... Bxe6 {[%clk 0:00:31.5]} 19. Nxe6 {[%clk 0:00:18.6]}
19... Qd5 {[%clk 0:00:32]} 20. Nxf8 {[%clk 0:00:14.4]} 20... exf4 {[%clk
0:00:32.2]} 21. Nxh7 {[%clk 0:00:05.7]} 21... Nxh7 {[%clk 0:00:28.9]} 22. Rfe1
{[%clk 0:00:06.3]} 22... b5 {[%clk 0:00:24.4]} 23. Qg6 {[%clk 0:00:04.8]} 23...
fxg3 {[%clk 0:00:14.7]} 24. hxg3 {[%clk 0:00:03.9]} 24... Nf6 {[%clk 0:00:12.4]}
25. Rac1 {[%clk 0:00:02.4]} 25... Qd8 {[%clk 0:00:10.6]} 0-1

[Event "Late-Titled-Tuesday-Blitz-June-25-2024"]
[Site "Chess.com"]
[Date "2024.06.25"]
[Round "10"]
[White "KoshkaMatrioshka"]
[Black "nindjaxx8"]
[Result "1-0"]
[WhiteElo "2568"]
[BlackElo "2697"]
[TimeControl "180+1"]
[EndTime "15:55:04 PDT"]
[Termination "KoshkaMatrioshka won by resignation"]

1. c4 {[%clk 0:02:59.8]} 1... e6 {[%clk 0:02:59.5]} 2. g3 {[%clk 0:03:00.2]}
2... d5 {[%clk 0:03:00.1]} 3. Nf3 {[%clk 0:03:00.7]} 3... Nf6 {[%clk 0:03:00.7]}
4. Bg2 {[%clk 0:03:01.3]} 4... Be7 {[%clk 0:03:01.2]} 5. O-O {[%clk 0:03:02]}
5... O-O {[%clk 0:03:01.8]} 6. b3 {[%clk 0:03:02.7]} 6... b6 {[%clk 0:03:02.4]}
7. Bb2 {[%clk 0:03:02.2]} 7... Bb7 {[%clk 0:03:03.1]} 8. e3 {[%clk 0:03:03]}
8... dxc4 {[%clk 0:03:03.3]} 9. bxc4 {[%clk 0:03:03.2]} 9... c5 {[%clk
0:03:03.9]} 10. Nc3 {[%clk 0:03:02.9]} 10... Nc6 {[%clk 0:03:03.4]} 11. Qe2
{[%clk 0:03:02.3]} 11... Rc8 {[%clk 0:03:01]} 12. Ne1 {[%clk 0:03:02.5]} 12...
Ba6 {[%clk 0:02:58.6]} 13. d3 {[%clk 0:03:00.8]} 13... Nd7 {[%clk 0:02:52]} 14.
f4 {[%clk 0:03:00.6]} 14... Bf6 {[%clk 0:02:51.8]} 15. g4 {[%clk 0:02:50.2]}
15... g6 {[%clk 0:02:42.4]} 16. g5 {[%clk 0:02:49.5]} 16... Bg7 {[%clk
0:02:42.3]} 17. Ne4 {[%clk 0:02:49.7]} 17... Bxb2 {[%clk 0:02:39.2]} 18. Qxb2
{[%clk 0:02:50.6]} 18... e5 {[%clk 0:02:35.5]} 19. f5 {[%clk 0:02:47.9]} 19...
Nb4 {[%clk 0:02:01.4]} 20. a3 {[%clk 0:02:40.4]} 20... Nc6 {[%clk 0:02:01.4]}
21. Nf3 {[%clk 0:02:31.7]} 21... Qc7 {[%clk 0:01:36.4]} 22. Qf2 {[%clk
0:02:21.6]} 22... gxf5 {[%clk 0:01:24.9]} 23. Ng3 {[%clk 0:02:16.7]} 23... Ne7
{[%clk 0:01:21.8]} 24. Nh4 {[%clk 0:02:16.2]} 24... f4 {[%clk 0:01:07.7]} 25.
Nh5 {[%clk 0:02:05.5]} 25... Ng6 {[%clk 0:01:00.3]} 26. Nf5 {[%clk 0:02:05.7]}
26... Qd8 {[%clk 0:00:32.2]} 27. h4 {[%clk 0:02:00.6]} 27... Qc7 {[%clk
0:00:27.8]} 28. Be4 {[%clk 0:01:50.8]} 28... Bb7 {[%clk 0:00:22.9]} 29. Bxb7
{[%clk 0:01:50.4]} 29... Qxb7 {[%clk 0:00:23.8]} 30. Nd6 {[%clk 0:01:51]} 30...
Qc6 {[%clk 0:00:21.6]} 31. Nxc8 {[%clk 0:01:51.3]} 31... Rxc8 {[%clk 0:00:20.9]}
32. exf4 {[%clk 0:01:51.8]} 32... exf4 {[%clk 0:00:21.2]} 33. Nxf4 {[%clk
0:01:52.2]} 33... Nde5 {[%clk 0:00:21]} 34. Nd5 {[%clk 0:01:50.6]} 34... Qe6
{[%clk 0:00:18.7]} 35. Qg3 {[%clk 0:01:41.8]} 35... Rd8 {[%clk 0:00:10]} 36. Rf6
{[%clk 0:01:41.8]} 36... Qg4 {[%clk 0:00:09.8]} 37. Qxg4 {[%clk 0:01:37.4]}
37... Nxg4 {[%clk 0:00:10.7]} 38. Rf5 {[%clk 0:01:26.4]} 38... N4e5 {[%clk
0:00:07.7]} 39. h5 {[%clk 0:01:21.7]} 39... Nh4 {[%clk 0:00:06.5]} 40. Rf4
{[%clk 0:01:07.7]} 40... Nhf3+ {[%clk 0:00:06.6]} 41. Kf2 {[%clk 0:01:04.8]}
41... Nd4 {[%clk 0:00:03.5]} 42. Rd1 {[%clk 0:00:52.9]} 42... Re8 {[%clk
0:00:02.6]} 43. Nf6+ {[%clk 0:00:52.8]} 43... Kf8 {[%clk 0:00:02.9]} 44. Nxe8
{[%clk 0:00:53.7]} 44... Kxe8 {[%clk 0:00:03.7]} 45. Re4 {[%clk 0:00:54.2]}
45... Nc6 {[%clk 0:00:03.2]} 46. Rde1 {[%clk 0:00:54.1]} 1-0

[Event "Late-Titled-Tuesday-Blitz-June-25-2024"]
[Site "Chess.com"]
[Date "2024.06.25"]
[Round "10"]
[White "SujanaLohani"]
[Black "Bkmzzzzz"]
[Result "0-1"]
[WhiteElo "2305"]
[BlackElo "2399"]
[TimeControl "180+1"]
[EndTime "15:55:04 PDT"]
[Termination "Bkmzzzzz won by resignation"]

1. e4 {[%clk 0:02:20.8]} 1... d6 {[%clk 0:02:57.8]} 2. d4 {[%clk 0:02:20.2]}
2... Nf6 {[%clk 0:02:58.3]} 3. Nc3 {[%clk 0:02:17.9]} 3... e5 {[%clk 0:02:58.8]}
4. dxe5 {[%clk 0:02:06.1]} 4... dxe5 {[%clk 0:02:59.7]} 5. Qxd8+ {[%clk
0:02:04.9]} 5... Kxd8 {[%clk 0:03:00.6]} 6. Bg5 {[%clk 0:02:04]} 6... Be6 {[%clk
0:03:00.8]} 7. O-O-O+ {[%clk 0:02:00.5]} 7... Nd7 {[%clk 0:03:01]} 8. Nf3 {[%clk
0:02:01.1]} 8... Bd6 {[%clk 0:03:01.2]} 9. Nb5 {[%clk 0:02:01.1]} 9... Ke7
{[%clk 0:03:01]} 10. Nxd6 {[%clk 0:01:59.7]} 10... cxd6 {[%clk 0:03:01.9]} 11.
Bb5 {[%clk 0:01:57.1]} 11... Nc5 {[%clk 0:02:45.8]} 12. Rhe1 {[%clk 0:01:54.8]}
12... a6 {[%clk 0:02:41.5]} 13. Bf1 {[%clk 0:01:51.8]} 13... h6 {[%clk
0:02:31.4]} 14. Bxf6+ {[%clk 0:01:49.8]} 14... gxf6 {[%clk 0:02:32.3]} 15. b3
{[%clk 0:01:49.6]} 15... f5 {[%clk 0:02:22.5]} 16. exf5 {[%clk 0:01:46.1]} 16...
Bxf5 {[%clk 0:02:23.4]} 17. Nxe5 {[%clk 0:01:44.8]} 17... Nxb3+ {[%clk
0:01:56.1]} 18. axb3 {[%clk 0:01:37.1]} 18... dxe5 {[%clk 0:01:54.8]} 19. Rxe5+
{[%clk 0:01:36.5]} 19... Be6 {[%clk 0:01:41]} 20. Rde1 {[%clk 0:01:35.6]} 20...
Kf6 {[%clk 0:01:36.6]} 21. Bd3 {[%clk 0:01:31.8]} 21... Rac8 {[%clk 0:01:34.3]}
22. Kb2 {[%clk 0:01:31.1]} 22... Rhd8 {[%clk 0:01:34.1]} 23. g3 {[%clk
0:01:27.9]} 23... Rc7 {[%clk 0:01:30.2]} 24. f4 {[%clk 0:01:27.7]} 24... Rc6
{[%clk 0:00:55.1]} 25. Rh5 {[%clk 0:01:23.2]} 25... Kg7 {[%clk 0:00:53.6]} 26.
g4 {[%clk 0:01:22.6]} 26... Rb6 {[%clk 0:00:40]} 27. g5 {[%clk 0:01:21.9]} 27...
hxg5 {[%clk 0:00:37.4]} 28. Rxg5+ {[%clk 0:01:20.8]} 28... Kf6 {[%clk
0:00:37.4]} 29. Re3 {[%clk 0:01:17.5]} 29... Rh8 {[%clk 0:00:35.5]} 30. Rg2
{[%clk 0:01:14.6]} 30... Bd5 {[%clk 0:00:34.8]} 31. Rf2 {[%clk 0:01:14.7]} 31...
Rd6 {[%clk 0:00:33]} 32. Re5 {[%clk 0:01:14.4]} 32... Be6 {[%clk 0:00:30.7]} 33.
Rg5 {[%clk 0:01:12.6]} 33... Rd4 {[%clk 0:00:29]} 34. Rg3 {[%clk 0:01:11.5]}
34... Rh4 {[%clk 0:00:28.4]} 35. f5 {[%clk 0:01:11.5]} 35... Bd5 {[%clk
0:00:27.1]} 36. Rg8 {[%clk 0:01:10.5]} 36... Rb4 {[%clk 0:00:26.4]} 37. Rd8
{[%clk 0:01:09.1]} 37... Bc6 {[%clk 0:00:26.3]} 38. Rd6+ {[%clk 0:01:08.5]}
38... Ke7 {[%clk 0:00:26.3]} 39. Rxc6 {[%clk 0:01:04.1]} 39... bxc6 {[%clk
0:00:26]} 40. Bxa6 {[%clk 0:01:03.2]} 40... Kf6 {[%clk 0:00:25.7]} 41. Bc4
{[%clk 0:01:00.5]} 41... Rhxc4 {[%clk 0:00:23.6]} 42. c3 {[%clk 0:00:58.8]}
42... Rb8 {[%clk 0:00:22]} 43. Rd2 {[%clk 0:00:53.5]} 43... Rc5 {[%clk
0:00:19.5]} 44. Rd6+ {[%clk 0:00:53.7]} 44... Kxf5 {[%clk 0:00:18.9]} 45. Rd7
{[%clk 0:00:53.3]} 45... Ke6 {[%clk 0:00:18.6]} 46. Rd4 {[%clk 0:00:53.8]} 46...
Rd5 {[%clk 0:00:18.2]} 0-1

[Event "Late-Titled-Tuesday-Blitz-June-25-2024"]
[Site "Chess.com"]
[Date "2024.06.25"]
[Round "10"]
[White "WPWPWP-2015"]
[Black "GelmanAlexander"]
[Result "0-1"]
[WhiteElo "2546"]
[BlackElo "2705"]
[TimeControl "180+1"]
[EndTime "15:55:08 PDT"]
[Termination "GelmanAlexander won by resignation"]

1. e4 {[%clk 0:02:59.4]} 1... c5 {[%clk 0:02:59.5]} 2. Nf3 {[%clk 0:02:59.5]}
2... e6 {[%clk 0:02:58.1]} 3. d4 {[%clk 0:02:58.5]} 3... cxd4 {[%clk 0:02:58.2]}
4. Nxd4 {[%clk 0:02:59.1]} 4... a6 {[%clk 0:02:58.7]} 5. Bd3 {[%clk 0:02:58.9]}
5... d6 {[%clk 0:02:58.8]} 6. O-O {[%clk 0:02:59]} 6... Nf6 {[%clk 0:02:58.7]}
7. a4 {[%clk 0:02:58.1]} 7... b6 {[%clk 0:02:57.9]} 8. Re1 {[%clk 0:02:57.6]}
8... Bb7 {[%clk 0:02:58.5]} 9. Nd2 {[%clk 0:02:57.7]} 9... Nbd7 {[%clk
0:02:57.2]} 10. h3 {[%clk 0:02:57.2]} 10... Qc7 {[%clk 0:02:54.3]} 11. Kh1
{[%clk 0:02:57]} 11... Be7 {[%clk 0:02:54.8]} 12. f4 {[%clk 0:02:56]} 12... h5
{[%clk 0:02:54.4]} 13. Qf3 {[%clk 0:02:54.8]} 13... h4 {[%clk 0:02:53.8]} 14.
Ne2 {[%clk 0:02:48.7]} 14... Nc5 {[%clk 0:02:52.4]} 15. b4 {[%clk 0:02:42.9]}
15... Nxd3 {[%clk 0:02:45.4]} 16. cxd3 {[%clk 0:02:43.1]} 16... d5 {[%clk
0:02:45.9]} 17. e5 {[%clk 0:02:36]} 17... d4 {[%clk 0:02:46.2]} 18. Ne4 {[%clk
0:02:35.6]} 18... Nxe4 {[%clk 0:02:44]} 19. dxe4 {[%clk 0:02:35.2]} 19... Bxb4
{[%clk 0:02:40.6]} 20. Rd1 {[%clk 0:02:28]} 20... Qc2 {[%clk 0:02:20.1]} 21.
Rxd4 {[%clk 0:02:21.3]} 21... Bc5 {[%clk 0:02:20.1]} 22. Rd3 {[%clk 0:02:11]}
22... O-O {[%clk 0:02:10.7]} 23. Ba3 {[%clk 0:01:05.8]} 23... Rad8 {[%clk
0:01:49.1]} 24. Rxd8 {[%clk 0:00:29.3]} 24... Rxd8 {[%clk 0:01:48.5]} 25. Bxc5
{[%clk 0:00:29.2]} 25... Bxe4 {[%clk 0:01:42.1]} 26. Qe3 {[%clk 0:00:10.3]}
26... bxc5 {[%clk 0:01:42.1]} 27. Rg1 {[%clk 0:00:09.7]} 27... Rd2 {[%clk
0:01:38.3]} 28. Re1 {[%clk 0:00:07.7]} 28... c4 {[%clk 0:01:35.4]} 29. Kg1
{[%clk 0:00:07.3]} 29... Bd3 {[%clk 0:01:32.8]} 30. Kf2 {[%clk 0:00:06.1]} 30...
c3 {[%clk 0:01:25.1]} 31. Kf3 {[%clk 0:00:03.8]} 31... Bxe2+ {[%clk 0:01:18.5]}
32. Rxe2 {[%clk 0:00:04.1]} 32... Rxe2 {[%clk 0:01:15.8]} 33. Qxe2 {[%clk
0:00:04.3]} 33... Qxa4 {[%clk 0:01:15.6]} 34. Qd3 {[%clk 0:00:04.2]} 34... Qc6+
{[%clk 0:01:14.5]} 35. Kf2 {[%clk 0:00:04.4]} 35... Qc5+ {[%clk 0:01:11.8]} 36.
Kf1 {[%clk 0:00:03.1]} 36... Qa5 {[%clk 0:01:01.5]} 37. Qc2 {[%clk 0:00:02.5]}
37... Qb5+ {[%clk 0:01:01.2]} 38. Ke1 {[%clk 0:00:02.7]} 38... Qb2 {[%clk
0:01:01]} 39. Qd3 {[%clk 0:00:03.2]} 39... Qd2+ {[%clk 0:00:58.4]} 40. Qxd2
{[%clk 0:00:03.4]} 40... cxd2+ {[%clk 0:00:59.3]} 41. Kxd2 {[%clk 0:00:04.3]}
41... Kh7 {[%clk 0:01:00.2]} 42. Ke3 {[%clk 0:00:03.4]} 42... Kg6 {[%clk
0:01:00.8]} 43. Ke4 {[%clk 0:00:03.8]} 43... a5 {[%clk 0:01:01]} 44. Kf3 {[%clk
0:00:04.1]} 44... Kf5 {[%clk 0:01:01.2]} 45. g4+ {[%clk 0:00:04.3]} 45... hxg3
{[%clk 0:01:01.3]} 46. Kxg3 {[%clk 0:00:04.8]} 46... a4 {[%clk 0:01:02.2]} 0-1